Cogmind - Beta 15 @@@ ROGUE MODE // 2025.10.09 @ 23:13:43 Player: Coblestone Result: Destroyed by G-34 Mercenary with Small Laser Performance ------------- Evolutions (1) 500 Regions Visited (3) 600 Robots Destroyed (42) 210 Value Destroyed (1304) 1304 Prototype IDs (0) 0 Alien Tech Used (0) 0 Bonus (29) 29 TOTAL SCORE: 2643 Bonus ------- High Alert Combat Kills 29 Cogmind --------- Core Integrity 0/400 Matter 438/450 Energy 350/350 System Corruption 0% Temperature Hot (259) Movement Walking (260) Ox2 Location -9/Storage Parts ------- > --- POWER (1) -------- (None) > --- PROPULSION (2) --- Aluminum Leg > --- UTILITY (4) ------ Large Storage Unit High-capacity Battery Large Matter Pod Signal Interpreter > --- WEAPON (2) ------- Heavy Assault Rifle > --- INVENTORY (15) --- Ion Engine Improved Ion Engine Light Nuclear Core Aluminum Leg Improved Hover Unit Improved Heat Sink ECM Suite Relay Coupler [Brawler] (18) Relay Coupler [Duelist] (17) Heavy Particle Cannon Heavy Particle Cannon Heavy Particle Cannon High-powered Shotgun Rocket Launcher Datajack Peak State ------------ > --- POWER ------------ Ion Engine > --- PROPULSION ------- Light Treads Light Treads > --- UTILITY ---------- Large Storage Unit High-capacity Battery Large Matter Pod Signal Interpreter > --- WEAPON ----------- Heavy Particle Cannon Heavy Particle Cannon > --- INVENTORY -------- Improved Ion Engine Light Nuclear Core Aluminum Leg Aluminum Leg Aluminum Leg Improved Hover Unit Improved Heat Sink ECM Suite Heavy Particle Cannon Heavy Particle Cannon High-powered Shotgun High-powered Shotgun High-powered Shotgun Rocket Launcher Datajack [Rating: 16] Favorites ----------- Power Ion Engine Engine Ion Engine Propulsion Light Treads Treads Light Treads Leg Aluminum Leg Utility High-capacity Battery Storage High-capacity Battery Processor Signal Interpreter Weapon Assault Rifle Energy Cannon Heavy Particle Cannon Ballistic Gun Assault Rifle Launcher Rocket Launcher Build | -11 -10 -9 -9 ------- Run | Yrd Mat Mat Sto Slots Evolved 2 | . . 2 . Power . | . . . . Propulsion . | . . . . Utility 2 | . . 2 . Weapon . | . . . . Parts Attached 30 | 6 3 12 9 Power 4 | 1 . 2 1 Engine 4 | 1 . 2 1 Core . | . . . . Reactor . | . . . . Propulsion 7 | 2 1 2 2 Treads 2 | . . 2 . Leg 5 | 2 1 . 2 Wheel . | . . . . Hover . | . . . . Flight . | . . . . Utility 6 | 1 2 2 1 Device . | . . . . Storage 5 | 1 1 2 1 Processor 1 | . 1 . . Hackware . | . . . . Protection . | . . . . Artifact . | . . . . Weapon 13 | 2 . 6 5 Energy Gun . | . . . . Energy Cannon 4 | . . 2 2 Ballistic Gun 6 | 2 . 1 3 Ballistic Cannon . | . . . . Launcher 3 | . . 3 . Special Weapon . | . . . . Impact Weapon . | . . . . Slashing Weapon . | . . . . Piercing Weapon . | . . . . Special Melee Weapon . | . . . . Unidentified Prototypes . | . . . . Parts Lost 10 | . 1 2 7 Power 2 | . . 1 1 Propulsion 4 | . 1 . 3 Utility . | . . . . Weapon 4 | . . 1 3 Highest Loss Streak 3 | . 1 1 3 To Critical Strikes . | . . . . Average Backups 10 | 3 7 9 14 Power 1 | . 1 1 2 Propulsion 3 | 2 4 3 3 Utility 1 | . . 1 2 Weapon 2 | . 1 2 5 Tool/Special . | . . . . Unused Backups 12 | . 4 . 8 Power 3 | . 1 . 2 Propulsion 3 | . 2 . 1 Utility 3 | . . . 3 Weapon 2 | . 1 . 1 Tool/Special 1 | . . . 1 Average Slot Usage (%) 98 | . 95 98 99 Engine 11 | . 14 10 10 Treads 12 | . . 21 10 Leg 10 | . 27 . 11 Storage 29 | . 19 32 33 Processor 9 | . 4 11 11 Energy Cannon 5 | . . 4 12 Ballistic Gun 13 | . 28 9 9 Launcher 3 | . . 8 . Peak Build Rating 16 | 6 8 16 16 Average Rating 11 | 4 7 12 15 On Entrance 7 | . 6 8 16 Naked Turns . | . . . . Heaviest Build 44 | 12 16 44 44 Greatest Support 40 | 20 20 40 40 Greatest Overweight (x) 2 | . 1 1 2 Average Overweight (x) . | . . . 1 Largest Inventory Capacity 15 | 8 8 15 15 Average Capacity 12 | 7 8 13 15 Most Carried 15 | 6 8 15 15 Average Carried 10 | 3 7 9 14 Final Capacity 15 | 8 8 15 15 Final Carried 15 | 6 8 15 15 Class Distribution -------------------- 100% | Mutant Dominant Class ---------------- Mutant | -10/Materials Mutant | -9/Materials Mutant | -9/Storage Resources | -11 -10 -9 -9 ----------- Run | Yrd Mat Mat Sto Matter Collected 1259 | 253 164 322 520 Remotely . | . . . . Salvage Created 1302 | . 202 388 712 Parts 79 | . 14 23 42 Haulers Intercepted . | . . . . Recyclers Shooed 4 | . . 1 3 Parts Field Recycled . | . . . . Retrieved Matter . | . . . . Parts Self-Destructed . | . . . . Prevented . | . . . . Kills | -11 -10 -9 -9 ------- Run | Yrd Mat Mat Sto Combat Hostiles Destroyed 37 | . 6 10 21 Guns 22 | . 6 5 11 Cannons 10 | . . 2 8 AOE 3 | . . 3 . Classes Destroyed 7 | . 3 3 1 Worker 1 | . . 1 . Recycler 1 | . . 1 . Watcher 3 | . 1 . 2 Swarmer 12 | . 3 2 7 Grunt 15 | . 3 6 6 Protector 1 | . . . 1 Sentry 9 | . . 2 7 Best Kill Streak 10 | . 3 4 10 Combat Bots Only 8 | . 3 4 8 Max Kills in Single Turn 2 | . 2 1 2 Gunslinging 1 | . 1 . 1 Exploded 1 | . . 1 . Melee . | . . . . Uniques/NPCs Destroyed . | . . . . Combat | -11 -10 -9 -9 -------- Run | Yrd Mat Mat Sto Hostile Shots Fired 236 | . 25 72 139 Missed 77 | . 12 25 40 Hits 159 | . 13 47 99 Projectile 159 | . 13 47 99 Critical Strikes 1 | . . . 1 Damage Taken 2054 | . 235 578 1241 Core 429 | . 29 90 310 Absorbed by Shields . | . . . . Core Remaining (%) 94 | 100 88 . . Volleys Fired 112 | . 20 42 50 Largest 2 | . 2 2 2 Hottest 150 | . 40 150 150 Shots Fired 194 | . 40 55 99 Gun 141 | . 40 36 65 Cannon 46 | . . 12 34 Launcher 7 | . . 7 . Special . | . . . . Kinetic 141 | . 40 36 65 Thermal 46 | . . 12 34 Explosive 7 | . . 7 . Electromagnetic . | . . . . Robot Hit Streak 11 | . 11 8 7 Robot Miss Streak 4 | . 2 4 4 Penetration Max . | . . . . Secondary Targets 4 | . 1 . 3 Max Gunslinging Chain 1 | . 1 . 1 Shots Hit Robots 131 | . 27 34 70 Core Hits 62 | . 12 19 31 Critical Kills 4 | . . . 4 Critical Parts Destroyed 2 | . . 1 1 Critical Strikes 6 | . . 1 5 Meltdown 2 | . . . 2 Destroy 4 | . . 1 3 Melee Attacks . | . . . . Impact . | . . . . Slashing . | . . . . Piercing . | . . . . Sneak Attacks . | . . . . Combat Hostiles . | . . . . Follow-up Attacks . | . . . . Damage Inflicted 2796 | . 320 973 1503 Guns 1564 | . 320 381 863 Cannons 768 | . . 150 618 Explosions 439 | . . 439 . Melee . | . . . . Ramming 25 | . . 3 22 Kinetic 1564 | . 320 381 863 Thermal 768 | . . 150 618 Explosive 439 | . . 439 . Electromagnetic . | . . . . Impact . | . . . . Slashing . | . . . . Piercing . | . . . . Highest Corruption . | . . . . Average Corruption . | . . . . Corruption Purged . | . . . . Corruption Blocked . | . . . . Overload Shots . | . . . . Overflow Damage 31 | . . 30 1 Projectiles 21 | . . 20 1 Explosions 10 | . . 10 . Melee . | . . . . Knockbacks . | . . . . Impact . | . . . . Kinetic . | . . . . Secondary . | . . . . Self-Inflicted Damage 74 | . . 74 . Shots 3 | . . 3 . Rammed 4 | . . 1 3 Targets Rammed 8 | . 1 1 6 Kicked 4 | . 1 . 3 Crushed . | . . . . Highest Temperature 522 | . 2 243 522 Average Temperature 126 | . 2 86 142 Received Heat Transfer 672 | . 78 162 432 Effects 3 | . . . 3 Shutdowns 1 | . . . 1 Matter Decay 1 | . . . 1 Damage (major) 1 | . . . 1 Siege Activations . | . . . . Martial Activations . | . . . . Shielding Activations . | . . . . Robots Disrupted . | . . . . Combat Hostiles . | . . . . Robots Corrupted . | . . . . Combat Hostiles . | . . . . Parts Fried . | . . . . Impact Corruptions . | . . . . Robots Melted 2 | . . . 2 Combat Hostiles 2 | . . . 2 Parts Melted 9 | . . . 9 Heat Transferred 1111 | . . 222 889 Parts Sabotaged . | . . . . Parts Stolen . | . . . . Parts Stripped . | . . . . Power Chain Reactions 1 | . . 1 . Alert | -11 -10 -9 -9 ------- Run | Yrd Mat Mat Sto Maximum Alert Level 2 | . . . 2 Low Security (%) 90 | 100 100 100 69 Level 1 4 | . . . 14 Level 2 4 | . . . 15 Level 3 . | . . . . Level 4 . | . . . . Level 5 . | . . . . High Security . | . . . . Max Security . | . . . . Peak Influence 481 | . 70 195 481 Initial 64 | . . 16 64 Average 81 | . 17 77 154 Influence Increases 1247 | . 162 387 698 Destroy 0b10 Robot/C 720 | . 120 200 400 Destroy 0b10 Robot/NC 30 | . 5 10 15 Destroy Leader 196 | . 32 40 124 Successful Hack 11 | . 5 6 . Disable Machine 75 | . . 75 . Anti-Garrison Action 150 | . . . 150 Destroy Structure 65 | . . 56 9 Influence Decreases 793 | . 122 274 397 Entered New Map 113 | . . 24 89 Time Decay 588 | . 112 230 246 Lost Part 92 | . 10 20 62 Squads Dispatched 8 | . 2 1 5 Investigation 2 | . 1 1 . Extermination . | . . . . Reinforcement 1 | . 1 . . Assault 2 | . . . 2 Garrison 3 | . . . 3 Intercept . | . . . . Searches Triggered . | . . . . Construction Impeded . | . . . . Haulers Reinforced . | . . . . Active Scanning Responses . | . . . . Cargo Convoy Interrupts . | . . . . Stealth | -11 -10 -9 -9 --------- Run | Yrd Mat Mat Sto Distress Signals 5 | . 1 1 3 Communications Jammed . | . . . . Distress Signals . | . . . . Times Spotted 60 | . 10 16 34 Peak Tracking Total 9 | . 4 5 9 Tactical Retreats . | . . . . Traps | -11 -10 -9 -9 ------- Run | Yrd Mat Mat Sto Traps Triggered 2 | . 1 1 . Indirectly . | . . . . Trap Hack Attempts . | . . . . Triggered . | . . . . Disarmed . | . . . . Reprogrammed . | . . . . Reused . | . . . . Traps Extracted . | . . . . Installed . | . . . . Triggered . | . . . . Machines | -11 -10 -9 -9 ---------- Run | Yrd Mat Mat Sto Machines Disabled 6 | . . 5 1 Max in Single Turn 1 | . . 1 1 Garrison Access 1 | . . . 1 Machines Repaired . | . . . . Machines Dismantled . | . . . . Machines Sabotaged . | . . . . Overloaded Fab Kills . | . . . . Hacking | -11 -10 -9 -9 --------- Run | Yrd Mat Mat Sto Machines Accessed 6 | . 2 2 2 Terminals 5 | . 2 2 1 Fabricators . | . . . . Repair Stations . | . . . . Recycling Units . | . . . . Scanalyzers . | . . . . Garrison Access 1 | . . . 1 Total Hacks 11 | . 4 3 4 Successful 10 | . 4 3 3 Failed 1 | . . . 1 Catastrophic . | . . . . Database Lockouts . | . . . . Manual 2 | . . 1 1 Terminals 10 | . 4 3 3 Fabricators . | . . . . Repair Stations . | . . . . Recycling Units . | . . . . Scanalyzers . | . . . . Garrison Access 1 | . . . 1 Terminal Hacks 10 | . 4 3 3 Record 1 | . . . 1 Emergency Access Points 1 | . . 1 . Alert Level 2 | . 1 1 . Locate Traps 1 | . . . 1 Investigation Status 1 | . 1 . . Hauler Manifests 1 | . 1 . . Zone Layout 3 | . 1 1 1 Fabricator Hacks . | . . . . Repair Station Hacks . | . . . . Recycling Unit Hacks . | . . . . Scanalyzer . | . . . . Garrison Access Hacks . | . . . . Unauthorized Hacks . | . . . . Terminals . | . . . . Fabricators . | . . . . Repair Stations . | . . . . Recycling Units . | . . . . Scanalyzers . | . . . . Garrison Access . | . . . . Data Cores Recovered . | . . . . Used . | . . . . Hacking Detections 3 | . . 1 2 Full Trace Events . | . . . . Feedback Events . | . . . . Feedback Blocked . | . . . . Robot Schematics Acquired . | . . . . Robots Built . | . . . . Authchips . | . . . . Time . | . . . . Total Robot Build Rating . | . . . . Part Schematics Acquired . | . . . . Parts Built . | . . . . Authchips . | . . . . Time . | . . . . Total Part Build Rating . | . . . . Parts Repaired . | . . . . Time . | . . . . Parts Recycled . | . . . . Recycled Matter . | . . . . Retrieved Matter . | . . . . Retrieved Components . | . . . . Parts Scanalyzed . | . . . . Part Schematics Acquired . | . . . . Parts Damaged . | . . . . Bothacking | -11 -10 -9 -9 ------------ Run | Yrd Mat Mat Sto Used RIF Installer . | . . . . Robots Hacked . | . . . . Non-combat . | . . . . Combat . | . . . . Robot Hacks Applied . | . . . . Relay Couplers Released 2 | . . . 2 Machine Destruction 2 | . . . 2 Fabnet Peak Effective % . | . . . . Robots Rewired . | . . . . Allies Hacked . | . . . . Hacks Repelled . | . . . . Allies | -11 -10 -9 -9 -------- Run | Yrd Mat Mat Sto Total Allies . | . . . . Largest Group . | . . . . Highest-Rated Group . | . . . . Highest-Rated Ally . | . . . . Total Orders . | . . . . Ally Attacks . | . . . . Total Damage . | . . . . Kills . | . . . . Allies Corrupted . | . . . . Allies Melted . | . . . . Intel | -11 -10 -9 -9 ------- Run | Yrd Mat Mat Sto Active Infowar (turns) . | . . . . Robot Analysis Total . | . . . . Derelict Logs Recovered . | . . . . Drone Launches . | . . . . Drone Recoveries . | . . . . Exploration | -11 -10 -9 -9 ------------- Run | Yrd Mat Mat Sto Turns Passed 1705 | 127 390 663 525 Spaces Moved 787 | 99 246 295 147 Core 8 | 8 . . . Treads 382 | . . 295 87 Legs 397 | 91 246 . 60 Wheels . | . . . . Hover . | . . . . Flight . | . . . . Fastest Speed 50 | 50 120 160 160 Average Speed 159 | 114 122 171 226 Slowest Speed 260 | 120 190 240 260 Overloaded Moves . | . . . . Propulsion Burnouts . | . . . . Robots Hopped . | . . . . Potential Cave-ins . | . . . . Cave-ins Triggered . | . . . . Exploration Rate (%) 24 | 5 47 14 32 Regions Visited 3 Branch Regions 1 Pre-discovered Areas . | . . . . Known Exits Taken 2 | . 1 1 . Unknown Exits Taken 1 | 1 . . . Scrap Searched . | . . . . Spaces Dug . | . . . . Terrain Destroyed 67 | . . 59 8 Melee . | . . . . Projectile 13 | . . 5 8 AOE 54 | . . 54 . Terrain Rammed . | . . . . Walls Destroyed . | . . . . Machines Disabled . | . . . . Actions | -11 -10 -9 -9 --------- Run | Yrd Mat Mat Sto Total 1033 | 110 296 396 231 Wait 56 | . 16 27 13 Move 784 | 98 245 294 147 Hop . | . . . . Pick Up 26 | 6 6 11 3 Fast Attach 11 | 6 2 3 . Attach 9 | . 1 4 4 Detach 2 | . 1 1 . Swap 13 | . . 7 6 Drop 12 | . 4 6 2 Fire 112 | . 20 42 50 Melee . | . . . . Ram . | . . . . Kick 4 | . 1 . 3 Crush 4 | . . 1 3 Escape Stasis . | . . . . Rewire . | . . . . Trap . | . . . . Miscellaneous . | . . . . Route ------- -11/Scrapyard -10/Materials -9/Materials -9/Storage History --------- Turn | Location | Event 8 | -11/Scrapyard | Discovered new exit (range 16) 128 | -11/Scrapyard | Entered Materials 305 | -10/Materials | Build established: Mutant 452 | -10/Materials | Discovered new exit (range 3) 473 | -10/Materials | Identified exit to Materials 518 | -10/Materials | Entered another Materials area 518 | -9/Materials | Evolved 2 slots: Utility x2 941 | -9/Materials | Discovered new exit (range 16) 1025 | -9/Materials | Identified exit to Storage 1181 | -9/Materials | Entered Storage 1375 | -9/Storage | Garrison activated, responded to threat 1492 | -9/Storage | Destroyed 8 combat bots 1493 | -9/Storage | Core integrity fell below 50% 1627 | -9/Storage | Core integrity fell below 20% 1706 | -9/Storage | Destroyed by G-34 Mercenary with Small Laser Last Messages --------------- 01688_ K-01 Serf collects debris. 01689_ I-25 Savior suffers critical hit (Meltdown). 01689_ Lrg. Battery melted. 01689_ Power Amplifier melted. 01689_ Remote Shield melted. 01689_ Com. Battery melted. 01689_ Imp. Ion Engine melted. 01691_ R-06 Scavenger collects Lgt. Assault Rifle. 01693_ K-01 Serf collects debris. 01694_ R-06 Scavenger collects Lgt. Ion Engine. 01696_ Ion Engine destroyed. 01698_ K-01 Serf collects debris. 01698_ G-47 Trooper destroyed. 01701_ K-01 Serf collects debris. 01702_ Hvy. Particle Cannon destroyed. 01703_ R-06 Scavenger collects Particle Gun. 01704_ Aluminum Leg destroyed. 01704_ K-01 Serf collects debris. Map ----- +----------------------------------------------------+ | | | ????????????????????????????????????????????????? | | ????????????????????????????????????????????????? | | ????????????????????????????????????????????????? | | ????????????????????????????????????????????????? | | ????????????????????????????????????????????????? | | ????????????????????????????????????????????????? | | ????????????????????????????????????????????????? | | ????????????????????????????????????????????????? | | ????????????????????????????????????????????????? | | ????????????????????????????????????????????????? | | ????????????????????????????????????????????????? | | ????????????????????????????????????????????????? | | ????????????????????????????????????????????????? | | ????????????????????????????????????????????????? | | ????????????????????????????????????????????????? | | ????????????????????????????????????????????????? | | ????????????????????????????????????????????????? | | ????????????????????????????????????????????????? | | ????????????????????????????????????????????????? | | ???????????????????????#####????????????????????? | | ???????????????????????+ +????????????????????? | | ???????????????????????# #????????????????????? | | ???????????????????????# #########+##?????????? | | ???????????????????????+ a* #??????? | | ???????????????????????# @g[aa #??????? | | ???????????????????????###gg#######?????????????? | | ???????????????????????# g!m #???????????????? | | ???????????????????????# !!! #???????????????? | | ???? ??????????????????# r!! ##??????????????? | | ??? ###+############# ! ##??????????????? | | ??? = /% =% #???????????????? | | ?? =% %#### != " ##??????????????? | | ?? * #??# "G" #??????????????? | | ?? #??# " ##??????????????? | | ?????########### #??# #???????????????? | | ????????? ?????# =#####+#######???????????????? | | ????????? ""???# *%[ #???????????????? | | ???????? """??# #???????????????? | | ????????# """ ## +???????????????? | | ????????# / #???????????????? | | ????????# """ ## ##+#####+## #???????????????? | | ????????" """??# #???????????? ?????????????????? | | ????????? ""???# #??????????????????????????????? | | ???????#" ????#%#??????????????????????????????? | | ????????# ?????# #??????????????????????????????? | | ?????????! ????# ###########????????????????????? | | ??#??????? ???# # #######?"????????????? | | ?# #####/### # """" # # ?????????????? | | ?# # """" # # ?????????????? | +----------------------------------------------------+ Best States ------------- Heat Dissipation 28 Energy Generation 10 Energy Capacity 500 Matter Stores 450 Matter Capacity 450 Sight Range 16 Terrain Scan Density 10 Evasion (%) 55 Recoil Reduction 2 Item Schematics ----------------- None Robot Schematics ------------------ None Fabricated ------------ Nothing Repaired ---------- Nothing Alien Tech Used ----------------- None Achievements -------------- It's Just You Shopping List Troublemaker Challenges ------------ None Game ------ Seed HardcellWarpDetector Manual? 0 Play Time 00:38:32 Cumulative 1.5 hours Start 2025.10.09 @ 21:08:43 End 2025.10.09 @ 23:13:43 Sessions 1 Manual Loads 0 Difficulty Rogue Special Mode None Game No. 4 Rogue 4 Adventurer 0 Explorer 0 Win Type - Total 0 Types 0/0/0/0/0/0/0/0/0/0 Lore% 0 Gallery% 3 Achievement% 3 Wizard Run 0 Options --------- Layout 1 ASCII 0 Keyboard 0 Movement Arrows Keybinds 0 Fullscreen 1 Font 32/SmallcapsGlow Map View 50x35 Zoom Use 0% Tactical HUD 1 Map Filters NONE Filters NONE Steam 1 RUN: 0e11ebec-2c63-4a21-a217-9dc0b1fe933b